Cogmind - Beta 15 @@@ ROGUE MODE // 2025.05.19 @ 16:13:02 Player: Fleshy Vegetable Bird Result: Destroyed by HL-EEH(R) with Subdweller Beam Cannon Performance ------------- Evolutions (0) 0 Regions Visited (2) 400 Robots Destroyed (31) 155 Value Destroyed (509) 509 Prototype IDs (11) 220 Alien Tech Used (0) 0 Bonus (0) 0 TOTAL SCORE: 1284 Bonus ------- None Cogmind --------- Core Integrity 0/250 Matter 300/300 Energy 100/100 System Corruption 0% Temperature Cool (9) Movement Rolling (130) Ox2 Location -10/Subcaves Parts ------- > --- POWER (1) -------- (None) > --- PROPULSION (2) --- Subdweller Monowheel > --- UTILITY (2) ------ High-capacity Storage Unit > --- WEAPON (2) ------- Ripper > --- INVENTORY (20) --- Flightbrick Medium Matter Pod (100) Machine Analyzer Light Armor Plating Scrap Shield Cobbler Unit Subdweller Laser Subdweller Laser Battle Rifle Subdweller Machine Gun Subdweller Machine Gun Barrage Gun Subdweller Shrapnel Launcher Scrap Shield Fragment (47) Peak State ------------ > --- POWER ------------ (None) > --- PROPULSION ------- Wheel > --- UTILITY ---------- High-capacity Storage Unit Improved Terrain Scanner > --- WEAPON ----------- Heavy Riot Gun Ripper > --- INVENTORY -------- Subdweller Monowheel Flightbrick Medium Matter Pod Machine Analyzer Light Armor Plating Scrap Shield Cobbler Unit Subdweller Laser Subdweller Laser Battle Rifle Barrage Gun Subdweller Shrapnel Launcher Scrap Shield Fragment [Rating: 19] Favorites ----------- Power Ion Engine Engine Ion Engine Propulsion Wheel Treads Light Treads Wheel Wheel Utility Improved Terrain Scanner Device Improved Terrain Scanner Storage Large Storage Unit Protection Light Armor Plating Weapon Ripper Energy Gun Heavy Riot Gun Energy Cannon Subdweller Beam Cannon Ballistic Gun Light Assault Rifle Slashing Weapon Ripper Build | -11 -10 -10 ------- Run | Yrd Mat Sub Slots Evolved . | . . . Power . | . . . Propulsion . | . . . Utility . | . . . Weapon . | . . . Parts Attached 29 | 6 8 15 Power 5 | 1 1 3 Engine 5 | 1 1 3 Core . | . . . Reactor . | . . . Propulsion 9 | 2 2 5 Treads 1 | . . 1 Leg . | . . . Wheel 8 | 2 2 4 Hover . | . . . Flight . | . . . Utility 8 | 2 3 3 Device 3 | 1 1 1 Storage 4 | 1 2 1 Processor . | . . . Hackware . | . . . Protection 1 | . . 1 Artifact . | . . . Weapon 7 | 1 2 4 Energy Gun 2 | . 1 1 Energy Cannon 1 | . . 1 Ballistic Gun 3 | 1 1 1 Ballistic Cannon . | . . . Launcher . | . . . Special Weapon . | . . . Impact Weapon . | . . . Slashing Weapon 1 | . . 1 Piercing Weapon . | . . . Special Melee Weapon . | . . . Unidentified Prototypes . | . . . Parts Lost 13 | . 1 12 Power 2 | . . 2 Propulsion 6 | . . 6 Utility 2 | . 1 1 Weapon 3 | . . 3 Highest Loss Streak 4 | . 1 4 To Critical Strikes 1 | . . 1 Average Backups 10 | 2 7 11 Power . | . . . Propulsion 1 | 1 3 1 Utility 5 | . 1 5 Weapon 3 | 1 1 4 Tool/Special . | . . . Unused Backups 18 | 2 3 13 Power 1 | . 1 . Propulsion 4 | 2 1 1 Utility 4 | . . 4 Weapon 9 | . 1 8 Tool/Special . | . . . Average Slot Usage (%) 78 | . 97 74 Engine 5 | . 13 3 Wheel 17 | . 28 15 Device 11 | . 13 10 Storage 14 | . 14 14 Protection 1 | . . 2 Energy Gun 11 | . 13 10 Ballistic Gun 5 | . 13 3 Slashing Weapon 9 | . . 11 Peak Build Rating 19 | 8 10 19 Average Rating 13 | 5 9 15 On Entrance 6 | . 8 10 Naked Turns . | . . . Heaviest Build 48 | 12 30 48 Greatest Support 20 | 20 20 20 Greatest Overweight (x) 15 | 1 1 15 Average Overweight (x) 2 | . . 2 Largest Inventory Capacity 20 | 8 15 20 Average Capacity 15 | 7 10 16 Most Carried 20 | 5 11 20 Average Carried 13 | 2 7 15 Final Capacity 20 | 8 15 20 Final Carried 19 | 4 11 19 Class Distribution -------------------- 93% | Mutant 6% | Scavenger-Mutant Dominant Class ---------------- Mutant | -10/Materials Mutant | -10/Subcaves Resources | -11 -10 -10 ----------- Run | Yrd Mat Sub Matter Collected 781 | 292 260 229 Remotely . | . . . Salvage Created 933 | 176 498 259 Parts 61 | 12 42 7 Haulers Intercepted 2 | . 2 . Recyclers Shooed 3 | 1 2 . Parts Field Recycled . | . . . Retrieved Matter . | . . . Parts Self-Destructed 14 | . . 14 Prevented . | . . . Kills | -11 -10 -10 ------- Run | Yrd Mat Sub Combat Hostiles Destroyed 15 | . 9 6 Guns 9 | . 9 . Cannons 4 | . . 4 Classes Destroyed 11 | 2 7 2 Worker 3 | . 3 . Builder 2 | . 2 . Tunneler 6 | 5 1 . Hauler 2 | . 2 . Recycler 1 | 1 . . Mechanic 1 | . 1 . Watcher 1 | . 1 . Swarmer 6 | . 6 . Grunt 3 | . 3 . Cobbler 1 | . . 1 Subdweller 6 | . . 6 Best Kill Streak 4 | 4 4 3 Combat Bots Only 3 | . 3 3 Max Kills in Single Turn 2 | 1 2 1 Gunslinging 1 | . 1 . Exploded . | . . . Melee . | . . . Uniques/NPCs Destroyed . | . . . Combat | -11 -10 -10 -------- Run | Yrd Mat Sub Hostile Shots Fired 119 | . 28 91 Missed 39 | . 6 33 Hits 80 | . 22 58 Projectile 80 | . 22 58 AOE 5 | . . 5 Critical Strikes 3 | . . 3 Damage Taken 1262 | . 180 1082 Core 262 | . 31 231 Absorbed by Shields . | . . . Core Remaining (%) 100 | 100 . . Volleys Fired 119 | 32 60 27 Largest 2 | 1 2 2 Hottest 100 | 20 60 100 Shots Fired 174 | 32 99 43 Gun 156 | 32 99 25 Cannon 18 | . . 18 Launcher . | . . . Special . | . . . Kinetic 104 | 32 49 23 Thermal 18 | . . 18 Explosive . | . . . Electromagnetic 52 | . 50 2 Robot Hit Streak 15 | 4 7 15 Robot Miss Streak 3 | 2 3 2 Penetration Max . | . . . Secondary Targets 1 | . 1 . Max Gunslinging Chain 1 | . 1 . Shots Hit Robots 102 | 20 52 30 Core Hits 43 | 10 26 7 Critical Kills 2 | . . 2 Critical Parts Destroyed . | . . . Critical Strikes 3 | . . 3 Meltdown 2 | . . 2 Destroy 1 | . . 1 Melee Attacks 19 | . . 19 Impact . | . . . Slashing 19 | . . 19 Piercing . | . . . Sneak Attacks 2 | . . 2 Combat Hostiles . | . . . Follow-up Attacks . | . . . Damage Inflicted 1441 | 163 631 647 Guns 911 | 163 631 117 Cannons 417 | . . 417 Explosions . | . . . Melee 113 | . . 113 Ramming . | . . . Kinetic 509 | 163 229 117 Thermal 417 | . . 417 Explosive . | . . . Electromagnetic 402 | . 402 . Impact . | . . . Slashing 113 | . . 113 Piercing . | . . . Highest Corruption . | . . . Average Corruption . | . . . Corruption Purged . | . . . Corruption Blocked . | . . . Overload Shots . | . . . Overflow Damage 53 | . . 53 Projectiles . | . . . Explosions . | . . . Melee 53 | . . 53 Knockbacks . | . . . Impact . | . . . Kinetic . | . . . Secondary . | . . . Self-Inflicted Damage . | . . . Shots . | . . . Rammed . | . . . Targets Rammed . | . . . Kicked . | . . . Crushed . | . . . Highest Temperature 55 | . 55 52 Average Temperature 23 | . 25 20 Received Heat Transfer 276 | . 15 261 Siege Activations . | . . . Martial Activations . | . . . Shielding Activations . | . . . Robots Disrupted . | . . . Combat Hostiles . | . . . Robots Corrupted . | . . . Combat Hostiles . | . . . Parts Fried . | . . . Impact Corruptions . | . . . Robots Melted 2 | . . 2 Combat Hostiles 2 | . . 2 Parts Melted 1 | . . 1 Heat Transferred 555 | . . 555 Parts Sabotaged . | . . . Parts Stolen . | . . . Parts Stripped . | . . . Power Chain Reactions . | . . . Alert | -11 -10 -10 ------- Run | Yrd Mat Sub Maximum Alert Level . | . . . Low Security (%) 100 | 100 100 . Level 1 . | . . . Level 2 . | . . . Level 3 . | . . . Level 4 . | . . . Level 5 . | . . . High Security . | . . . Max Security . | . . . Peak Influence 109 | 10 109 . Initial . | . . . Average 38 | 1 44 . Influence Increases 431 | 30 311 90 Destroy 0b10 Robot/C 180 | . 180 . Destroy 0b10 Robot/NC 80 | 30 50 . Destroy Leader 46 | . 46 . Successful Hack 5 | . 5 . Lose Combat Pursuer 120 | . 30 90 Influence Decreases 387 | 30 261 96 Entered New Map 25 | . . 25 Time Decay 312 | 30 251 31 Lost Part 50 | . 10 40 Squads Dispatched 1 | . 1 . Investigation . | . . . Extermination . | . . . Reinforcement 1 | . 1 . Assault . | . . . Garrison . | . . . Intercept . | . . . Searches Triggered . | . . . Construction Impeded . | . . . Haulers Reinforced . | . . . Active Scanning Responses . | . . . Cargo Convoy Interrupts . | . . . Stealth | -11 -10 -10 --------- Run | Yrd Mat Sub Distress Signals 1 | . 1 . Communications Jammed . | . . . Distress Signals . | . . . Times Spotted 39 | . 23 16 Peak Tracking Total 4 | . 4 4 Tactical Retreats 5 | . 1 4 Traps | -11 -10 -10 ------- Run | Yrd Mat Sub Traps Triggered 2 | . 1 1 Indirectly . | . . . Trap Hack Attempts . | . . . Triggered . | . . . Disarmed . | . . . Reprogrammed . | . . . Reused 2 | . . 2 Traps Extracted . | . . . Installed 2 | . . 2 Triggered . | . . . Most Traps Carried 2 | . . 2 Machines | -11 -10 -10 ---------- Run | Yrd Mat Sub Machines Disabled 1 | . . 1 Max in Single Turn 1 | . . 1 Machines Repaired . | . . . Machines Dismantled . | . . . Machines Sabotaged . | . . . Overloaded Fab Kills . | . . . Hacking | -11 -10 -10 --------- Run | Yrd Mat Sub Machines Accessed 8 | . 4 4 Terminals 4 | . 4 . Fabricators . | . . . Repair Stations . | . . . Recycling Units . | . . . Scanalyzers . | . . . Garrison Access . | . . . Total Hacks 29 | . 12 17 Successful 21 | . 4 17 Failed 8 | . 8 . Catastrophic . | . . . Database Lockouts . | . . . Manual 11 | . 11 . Terminals 12 | . 12 . Fabricators . | . . . Repair Stations . | . . . Recycling Units . | . . . Scanalyzers . | . . . Garrison Access . | . . . Terminal Hacks 17 | . . 17 Record 14 | . . 14 Open Door 1 | . . 1 Proto ID Catalog 1 | . . 1 Release Object 1 | . . 1 Fabricator Hacks . | . . . Repair Station Hacks . | . . . Recycling Unit Hacks . | . . . Scanalyzer . | . . . Garrison Access Hacks . | . . . Unauthorized Hacks 4 | . 4 . Terminals 4 | . 4 . Track 2 | . 2 . Botnet 2 | . 2 . Fabricators . | . . . Repair Stations . | . . . Recycling Units . | . . . Scanalyzers . | . . . Garrison Access . | . . . Data Cores Recovered . | . . . Used . | . . . Hacking Detections 4 | . 4 . Full Trace Events . | . . . Feedback Events . | . . . Feedback Blocked . | . . . Robot Schematics Acquired . | . . . Robots Built . | . . . Authchips . | . . . Time . | . . . Total Robot Build Rating . | . . . Part Schematics Acquired . | . . . Parts Built . | . . . Authchips . | . . . Time . | . . . Total Part Build Rating . | . . . Parts Repaired . | . . . Time . | . . . Parts Recycled . | . . . Recycled Matter . | . . . Retrieved Matter . | . . . Retrieved Components . | . . . Parts Scanalyzed . | . . . Part Schematics Acquired . | . . . Parts Damaged . | . . . Bothacking | -11 -10 -10 ------------ Run | Yrd Mat Sub Used RIF Installer . | . . . Robots Hacked . | . . . Non-combat . | . . . Combat . | . . . Robot Hacks Applied . | . . . Relay Couplers Released . | . . . Fabnet Peak Effective % . | . . . Robots Rewired . | . . . Allies Hacked . | . . . Hacks Repelled . | . . . Allies | -11 -10 -10 -------- Run | Yrd Mat Sub Total Allies . | . . . Largest Group . | . . . Highest-Rated Group . | . . . Highest-Rated Ally . | . . . Total Orders . | . . . Ally Attacks . | . . . Total Damage . | . . . Kills . | . . . Allies Corrupted . | . . . Allies Melted . | . . . Intel | -11 -10 -10 ------- Run | Yrd Mat Sub Active Infowar (turns) 3985 | 56 861 3068 Terrain 3985 | 56 861 3068 Robot Analysis Total . | . . . Derelict Logs Recovered 2 | . . 2 Drone Launches . | . . . Drone Recoveries . | . . . Exploration | -11 -10 -10 ------------- Run | Yrd Mat Sub Turns Passed 5080 | 140 900 4040 Spaces Moved 2554 | 79 541 1934 Core 18 | 10 . 8 Treads 1 | . . 1 Legs . | . . . Wheels 2535 | 69 541 1925 Hover . | . . . Flight . | . . . Fastest Speed 50 | 50 80 95 Average Speed 115 | 80 83 125 Slowest Speed 800 | 95 95 800 Overloaded Moves . | . . . Propulsion Burnouts . | . . . Robots Hopped . | . . . Potential Cave-ins . | . . . Cave-ins Triggered . | . . . Exploration Rate (%) 46 | 5 60 74 Regions Visited 2 Branch Regions 1 Pre-discovered Areas 1 | . . 1 Known Exits Taken . | . . . Unknown Exits Taken 2 | 1 1 . Scrap Searched 6 | . . 6 Spaces Dug . | . . . Terrain Destroyed . | . . . Melee . | . . . Projectile . | . . . AOE . | . . . Terrain Rammed . | . . . Walls Destroyed . | . . . Machines Disabled . | . . . Actions | -11 -10 -10 --------- Run | Yrd Mat Sub Total 4511 | 130 904 3477 Wait 1701 | . 262 1439 Move 2552 | 78 540 1934 Hop . | . . . Pick Up 55 | 12 22 21 Fast Attach . | . . . Attach 22 | 6 4 12 Detach 1 | . . 1 Swap 16 | . 5 11 Drop 23 | 2 11 10 Fire 119 | 32 60 27 Melee 19 | . . 19 Ram . | . . . Kick . | . . . Crush . | . . . Escape Stasis . | . . . Rewire . | . . . Trap 2 | . . 2 Miscellaneous 1 | . . 1 Route ------- -11/Scrapyard -10/Materials (discovered 4 exits: [*Mat x2] / [*Min] / *Sub) -10/Subcaves (discovered 2 exits: [*Mat] / [*Rec]) History --------- Turn | Location | Event 40 | -11/Scrapyard | Discovered new exit (range 16) 141 | -11/Scrapyard | Entered Materials 308 | -10/Materials | Build established: Mutant 319 | -10/Materials | Discovered new exit (range 5) 407 | -10/Materials | Discovered new exit (range 15) 486 | -10/Materials | Discovered new exit (range 16) 860 | -10/Materials | Discovered new exit (range 10) 1041 | -10/Materials | Entered Subcaves 1042 | -10/Subcaves | Shifting Twisted Machinery released Sub. Power Source 1044 | -10/Subcaves | Shifting Twisted Machinery released Sub. Beam Cannon 1090 | -10/Subcaves | Learned 40 Factory zone layouts 1090 | -10/Subcaves | Learned Factory stockpile data 1117 | -10/Subcaves | Lost 4 parts (1p2n1w) 1189 | -10/Subcaves | Learned Materials emergency access door positions 1194 | -10/Subcaves | A swath of the cavern ceiling suddenly collapsed 1235 | -10/Subcaves | Shifting Twisted Machinery released Sub. Laser 1432 | -10/Subcaves | Shifting Twisted Machinery released Shrapnel Trap 1480 | -10/Subcaves | Core integrity fell below 50% 1515 | -10/Subcaves | Lost 3 parts (1p1n1w) 1695 | -10/Subcaves | Disturbed a concealed Subdweller 1797 | -10/Subcaves | Learned location of Storage (-9) 1799 | -10/Subcaves | A swath of the cavern ceiling suddenly collapsed 3716 | -10/Subcaves | Visited 4L-MR0's lab 3733 | -10/Subcaves | Found Flightbrick 3856 | -10/Subcaves | Released subatomizers from SUBCON Basin 4084 | -10/Subcaves | Discovered new exit (range 13) 4759 | -10/Subcaves | Shifting Twisted Machinery released Sub. Monowheel 4763 | -10/Subcaves | Discovered new exit (range 13) 4770 | -10/Subcaves | Core integrity fell below 20% 4789 | -10/Subcaves | Shifting Twisted Machinery released Sub. Power Source 5081 | -10/Subcaves | Destroyed by HL-EEH(R) with Subdweller Beam Cannon Last Messages --------------- Collection purity confirmed 100%... Ejecting SUBCON Basin... Delivery behind schedule, handle with care! 03856_ Released subatomizers from SUBCON Basin. 04084_ EXIT=FOUND 04114_ TN-DZL(u) tweaks Twisted Machinery. 04125_ TN-DZL(u) builds Twisted Machinery. 04128_ TN-DZL(u) tweaks Twisted Machinery. 04140_ TN-DZL(u) builds Twisted Machinery. 04659_ Acquired Sub. Machine Gun. Sub. Monowheel falls loose from the Twisted Machinery. 04763_ EXIT=FOUND 04769_ Wheel destroyed. 04771_ Imp. Terrain Scanner destroyed. Sub. Power Source falls loose from the Twisted Machinery. 04844_ Hvy. Riot Gun destroyed. 04850_ Acquired 5 matter. 05077_ HL-EEH(R): "SUBMAD!" Map ----- +----------------------------------------------------+ | #????????????#???????###????#""" "#### | | #??#??????????????#????????## "" "#?## | | #???#??????????????????#????## """ ### | | ## ###??????????????????????????## """"## | | ######?????#??????????????????#???##""""" | | ### ###????#??????????##?#????????###"" | | ##????????????????????????????## ## | | ####???????????????#??????????######### | | ###### #?????????????##???##??????????#??#? | | ##????## ##???????????#???????????#?????#???? | | ???????# #??#?????????????#????????????????? | | ??#????### #????????##??#??????????#??#??????? | | ?????????## #??????????????????#?#??????#???#?? | | ##????????## #?????????????????????????????????? | | ???????????# #????????????#????????#???????????? | | ??????????## #?#????????#??????????????????????? | | ???#??????# #???#???????#?????????????????????# | | ???#????#?# ##??????????????????????????????#??? | | ?#????????## ###?#?#???#??????????????#?????????? | | ???????????## ##????????????????????#??????????? | | ?#??#?????### ##???????#????????????#???#??#??? | | ?##???????## ####???#?????#??####?#????????#? | | ??#?????### ###?????????## ##?????#????? | | ????????#?# ##?#####?## #?#? ??????? | | ?#????????# ### #### #?????????? | | ?????#??### #### @ ###?????? | | ????????#### #??## ## ##???? | | #####??### #???# ## #???? | | """"#?## ## #???## #???? | | X& "### # # #????## ##### | | " "#" # # ## #?????#### #?? | | " "#" # ## #?##?????# ### | | " ## #??#???#?## ## | | " "#"X### #???##?#??### R ## | | ######## #???????#?#### ## ### | | ??????##### #????#?#?## ####### ### | | ?????#???## ####???????## ### ### | | ??#?#?????## ##????#??#???# ## | | ???????????####?????????##?# ###### | | ???????????#???????????????# ## ## | | ??????????????????????????# | | ????????????????????#?#?#?# | | ??????????????????????????# ##### | | ??????????????????#???????## ##??### ## | | ???????#???????#???????????###?##?#?###### | | ????????????????????????????????????????# | | ??????????????????????????????????##????# | | ????????????????????????????????????????### | | ??????????????????????????????????????????# # | | ?????????????????????????????????????#????## ## | +----------------------------------------------------+ Best States ------------- Heat Dissipation 25 Energy Generation 15 Energy Capacity 250 Matter Stores 300 Matter Capacity 300 Sight Range 16 Terrain Scan Range 16 Terrain Scan Density 10 Armor Coverage 150 Evasion (%) 50 Recoil Reduction 1 Item Schematics ----------------- None Robot Schematics ------------------ None Fabricated ------------ Nothing Repaired ---------- Nothing Alien Tech Used ----------------- None Achievements -------------- None Challenges ------------ None Game ------ Seed LongswordPointyNanosword Manual? 0 Play Time 00:32:05 Cumulative 342.6 hours Start 2025.05.19 @ 15:42:30 End 2025.05.19 @ 16:13:02 Sessions 1 Manual Loads 0 Difficulty Rogue Special Mode None Game No. 391 Rogue 391 Adventurer 0 Explorer 0 Win Type - Total 6 Types 3/1/1/1/0/0/0/0/0/0 Lore% 53 Gallery% 67 Achievement% 68 Wizard Run 0 Options --------- Layout 1 ASCII 0 Keyboard 0 Movement Numpad Keybinds 0 Fullscreen 1 Font 32/SmallcapsGlow Map View 50x35 Zoom Use 0% Tactical HUD 1 Map Filters NONE Filters NONE Steam 1 RUN: ab007e90-3b10-464d-ae62-0968fd581ca4